fUSD/lending_fUSD_20240117
["ID","MTS","AMOUNT","RATE_DAILY","PERIOD"]
[311900187,1705489977908,-500.0,0.00027123,2]
[311900188,1705489977918,-548.37,0.00027123,2]
[311900189,1705489977930,-852.28,0.00027123,2]
[311900190,1705489977939,-751.97,0.00027123,2]
[311900191,1705489977951,-629.68,0.00027123,2]
[311900192,1705489977960,-1038.17,0.00027123,2]
[311900193,1705489977969,-865.86,0.00027123,2]
[311900194,1705489977979,-512.20446839,0.00027123,2]
[311900195,1705489977988,-809.41,0.00027123,2]
[311900196,1705489977998,-824.35,0.00027123,2]
[311900197,1705489978007,-500.0,0.00027123,2]
[311900198,1705489978016,-583.98,0.00027123,2]
[311900199,1705489978026,-858.82,0.00027123,2]
[311900200,1705489978035,-500.0,0.00027123,2]
[311900201,1705489978044,-678.81,0.00027123,2]
[311900202,1705489978054,-924.3,0.00027123,2]
[311900203,1705489978063,-683.06,0.00027123,2]
[311900204,1705489978073,-762.3,0.00027123,2]
[311900205,1705489978083,-726.09,0.00027123,2]
[311900206,1705489978092,-869.48,0.00027123,2]
[311900207,1705489978101,-500.0,0.00027123,2]
[311900208,1705489978111,-636.58,0.00027123,2]
[311900209,1705489978121,-888.84,0.00027123,2]
[311900210,1705489978130,-681.16,0.00027123,2]
[311900211,1705489978139,-1114.57,0.00027123,2]
[311900212,1705489978148,-986.98,0.00027123,2]
[311900213,1705489978158,-500.0,0.00027123,2]
[311900214,1705489978167,-560.75,0.00027123,2]
[311900215,1705489978177,-1015.76,0.00027123,2]
[311900216,1705489978186,-818.15,0.00027123,2]
[311900217,1705489978195,-924.47,0.00027123,2]
[311900218,1705489978204,-565.32,0.00027123,2]
[311900219,1705489978214,-778.03,0.00027123,2]
[311900220,1705489978223,-938.79,0.00027123,2]
[311900221,1705489978232,-685.24,0.00027123,2]
[311900222,1705489978241,-1126.57,0.00027123,2]
[311900223,1705489978251,-1529.03,0.00027123,2]
[311900224,1705489978260,-842.83,0.00027123,2]
[311900225,1705489978269,-677.6,0.00027123,2]
[311900226,1705489978278,-500.0,0.00027123,2]
[311900227,1705489978288,-824.64,0.00027123,2]
[311900228,1705489978299,-1113.11,0.00027123,2]
[311900229,1705489978308,-1539.23,0.00027123,2]
[311900230,1705489978318,-509.96,0.00027123,2]
[311900231,1705489978328,-802.8,0.00027123,2]
[311900232,1705489978338,-620.77,0.00027123,2]
[311900233,1705489978348,-500.0,0.00027123,2]
[311900234,1705489978357,-1060.88,0.00027123,2]
[311900235,1705489978368,-1111.84,0.00027123,2]
[311900236,1705489978378,-554.16,0.00027123,2]
[311900237,1705489978387,-797.2,0.00027123,2]
[311900238,1705489978398,-814.02,0.00027123,2]
[311900239,1705489978407,-653.02,0.00027123,2]
[311900240,1705489978417,-728.98,0.00027123,2]
[311900241,1705489978426,-608.56,0.00027123,2]
[311900242,1705489978437,-500.0,0.00027123,2]
[311900243,1705489978447,-463.35001675,0.00027123,2]
[311900244,1705489978456,-1117.37,0.00027123,2]
[311900245,1705489978466,-786.84,0.00027123,2]
[311900246,1705489978476,-644.84,0.00027123,2]
[311900247,1705489978485,-865.83,0.00027123,2]
[311900248,1705489978495,-985.83,0.00027123,2]
[311900249,1705489978505,-645.46,0.00027123,2]
[311900250,1705489978516,-500.0,0.00027123,2]
[311900251,1705489978525,-654.2,0.00027123,2]
[311900252,1705489978536,-671.37,0.00027123,2]
[311900253,1705489978547,-500.0,0.00027123,2]
[311900254,1705489978557,-859.76,0.00027123,2]
[311900255,1705489978568,-679.83,0.00027123,2]
[311900256,1705489978578,-677.29,0.00027123,2]
[311900257,1705489978589,-812.38,0.00027123,2]
[311900258,1705489978601,-529.77,0.00027123,2]
[311900259,1705489978611,-905.75,0.00027123,2]
[311900260,1705489978622,-597.1,0.00027123,2]
[311900261,1705489978631,-500.0,0.00027123,2]
[311900262,1705489978641,-976.89,0.00027123,2]
[311900263,1705489978651,-921.81,0.00027123,2]
[311900264,1705489978660,-801.58,0.00027123,2]
[311900265,1705489978670,-1318.24,0.00027123,2]
[311900266,1705489978680,-565.85,0.00027123,2]
[311900267,1705489978689,-500.0,0.00027123,2]
[311900268,1705489978698,-761.53,0.00027123,2]
[311900269,1705489978707,-638.67,0.00027123,2]
[311900270,1705489978717,-903.46,0.00027123,2]
[311900271,1705489978727,-689.33,0.00027123,2]
[311900272,1705489978737,-642.35,0.00027123,2]
[311900273,1705489978746,-1001.32,0.00027123,2]
[311900274,1705489978756,-623.34,0.00027123,2]
[311900275,1705489978765,-893.53,0.00027123,2]
[311900276,1705489978775,-1127.94,0.00027123,2]
[311900277,1705489978785,-970.35,0.00027123,2]
[311900278,1705489978794,-703.72,0.00027123,2]
[311900279,1705489978803,-877.36,0.00027123,2]
[311900280,1705489978813,-500.0,0.00027123,2]
[311900281,1705489978822,-1113.03,0.00027123,2]
[311900282,1705489978831,-1009.59,0.00027123,2]
[311900283,1705489978840,-671.58,0.00027123,2]
[311900284,1705489978850,-645.55,0.00027123,2]
[311900285,1705489978859,-519.72,0.00027123,2]
[311900286,1705489978870,-832.3,0.00027123,2]
[311900287,1705489978879,-509.1,0.00027123,2]
[311900288,1705489978888,-556.75,0.00027123,2]
[311900289,1705489978897,-500.0,0.00027123,2]
[311900290,1705489978906,-919.94,0.00027123,2]
[311900291,1705489978915,-574.45,0.00027123,2]
[311900292,1705489978924,-730.7,0.00027123,2]
[311900293,1705489978934,-1564.11,0.00027123,2]
[311900294,1705489978943,-753.37,0.00027123,2]
[311900295,1705489978953,-1972.35,0.00027123,2]
[311900296,1705489978963,-819.9,0.00027123,2]
[311900297,1705489978972,-665.72,0.00027123,2]
[311900298,1705489978981,-1330.15,0.00027123,2]
[311900299,1705489978990,-500.0,0.00027123,2]
[311900300,1705489978999,-1961.2,0.00027123,2]
[311900301,1705489979009,-924.92,0.00027123,2]
[311900302,1705489979018,-1342.87,0.00027123,2]
[311900303,1705489979027,-516.6,0.00027123,2]
[311900304,1705489979036,-966.0,0.00027123,2]
[311900305,1705489979045,-872.31,0.00027123,2]
[311900306,1705489979054,-1214.22,0.00027123,2]
[311900307,1705489979064,-748.35,0.00027123,2]
[311900308,1705489979074,-500.0,0.00027123,2]
[311900309,1705489979083,-937.16,0.00027123,2]
[311900310,1705489979093,-799.25,0.00027123,2]
[311900311,1705489979102,-628.65,0.00027123,2]
[311900312,1705489979111,-616.54,0.00027123,2]
[311900313,1705489979123,-500.0,0.00027123,2]
[311900314,1705489979132,-717.16,0.00027123,2]
[311900315,1705489979140,-587.88357786,0.00027123,2]
[311900316,1705489979150,-2202.67,0.00027123,2]
[311900317,1705489979159,-707.9,0.00027123,2]
[311900318,1705489979169,-994.43,0.00027123,2]
[311900319,1705489979178,-1314.57,0.00027123,2]
[311900320,1705489979188,-700.88,0.00027123,2]
[311900321,1705489979198,-747.11,0.00027123,2]
[311900322,1705489979208,-1247.23,0.00027123,2]
[311900323,1705489979220,-1107.65,0.00027123,2]
[311900324,1705489979230,-1113.86,0.00027123,2]
[311900325,1705489979240,-940.75,0.00027123,2]
[311900326,1705489979249,-1068.04,0.00027123,2]
[311900327,1705489979258,-591.69,0.00027123,2]
[311900328,1705489979268,-514.52,0.00027123,2]
[311900329,1705489979277,-1801.96,0.00027123,2]
[311900330,1705489979288,-1119.07,0.00027123,2]
[311900331,1705489979297,-500.0,0.00027123,2]
[311900332,1705489979307,-2470.72,0.00027123,2]
[311900333,1705489979316,-500.0,0.00027123,2]
[311900334,1705489979326,-524.15,0.00027123,2]
[311900335,1705489979337,-904.79,0.00027123,2]
[311900336,1705489979346,-510.6,0.00027123,2]
[311900337,1705489979356,-576.31,0.00027123,2]
[311900338,1705489979366,-1190.34,0.00027123,2]
[311900339,1705489979379,-764.68,0.00027123,2]
[311900340,1705489979388,-1052.25,0.00027123,2]
[311900341,1705489979398,-636.43,0.00027123,2]
[311900342,1705489979408,-670.55,0.00027123,2]
[311900343,1705489979419,-1264.48,0.00027123,2]
[311900344,1705489979428,-814.85,0.00027123,2]
[311900345,1705489979437,-544.71,0.00027123,2]
[311900346,1705489979448,-500.0,0.00027123,2]
[311900347,1705489979458,-1206.43,0.00027123,2]
[311900348,1705489979467,-500.0,0.00027123,2]
[311900349,1705489979476,-1198.01,0.00027123,2]
[311900350,1705489979486,-1043.84,0.00027123,2]
[311900351,1705489979495,-1304.35,0.00027123,2]
[311900352,1705489979504,-1069.27,0.00027123,2]
[311900353,1705489979514,-1087.69,0.00027123,2]
[311900354,1705489979523,-962.26,0.00027123,2]
[311900355,1705489979532,-516.2,0.00027123,2]
[311900356,1705489979541,-1632.67,0.00027123,2]
[311900357,1705489979550,-500.0,0.00027123,2]
[311900358,1705489979559,-939.16,0.00027123,2]
[311900359,1705489979569,-918.4,0.00027123,2]
[311900360,1705489979697,-995.2,0.00027123,2]
[311900361,1705489979707,-1008.57,0.00027123,2]
[311900362,1705489979717,-500.0,0.00027123,2]
[311900363,1705489979726,-1060.73,0.00027123,2]
[311900364,1705489979735,-500.0,0.00027123,2]
[311900365,1705489979745,-1029.51,0.00027123,2]
[311900366,1705489979754,-636.13,0.00027123,2]
[311900367,1705489979762,-500.0,0.00027123,2]
[311900368,1705489979771,-702.02,0.00027123,2]
[311900369,1705489979780,-701.5,0.00027123,2]
[311900370,1705489979789,-594.97,0.00027123,2]
[311900371,1705489979798,-1038.32,0.00027123,2]
[311900372,1705489979807,-572.4,0.00027123,2]
[311900373,1705489979818,-3550.63,0.00027123,2]
[311900374,1705489979827,-982.96,0.00027123,2]
[311900375,1705489979836,-579.93,0.00027123,2]
[311900376,1705489979846,-500.0,0.00027123,2]
[311900377,1705489979855,-924.4,0.00027123,2]
[311900378,1705489979864,-2301.87,0.00027123,2]
[311900379,1705489979875,-578.12,0.00027123,2]
[311900380,1705489979883,-885.89,0.00027123,2]
[311900381,1705489979893,-694.35,0.00027123,2]
[311900382,1705489979902,-711.56,0.00027123,2]
[311900383,1705489979911,-1404.62,0.00027123,2]
[311900384,1705489979920,-500.0,0.00027123,2]
[311900385,1705489979929,-635.43,0.00027123,2]
[311900386,1705489979939,-1174.22,0.00027123,2]
[311900387,1705489979949,-1235.63,0.00027123,2]
[311900388,1705489979958,-701.7,0.00027123,2]
[311900389,1705489979966,-915.13,0.00027123,2]
[311900390,1705489979975,-2849.83,0.00027123,2]
[311900391,1705489979984,-1964.36,0.00027123,2]
[311900392,1705489979993,-500.0,0.00027123,2]
[311900393,1705489980003,-544.59,0.00027123,2]
[311900394,1705489980012,-2896.5,0.00027123,2]
[311900395,1705489980022,-683.02,0.00027123,2]
[311900396,1705489980031,-1968.52,0.00027123,2]
[311900397,1705489980040,-1342.01,0.00027123,2]
[311900398,1705489980049,-675.72,0.00027123,2]
[311900399,1705489980058,-1029.41,0.00027123,2]
[311900400,1705489980067,-1548.58,0.00027123,2]
[311900401,1705489980076,-655.65,0.00027123,2]
[311900402,1705489980085,-3528.9,0.00027123,2]
[311900403,1705489980095,-550.17,0.00027123,2]
[311900404,1705489980104,-530.48,0.00027123,2]
[311900405,1705489980114,-1274.2,0.00027123,2]
[311900406,1705489980124,-500.0,0.00027123,2]
[311900407,1705489980133,-710.03,0.00027123,2]
[311900408,1705489980142,-213.42117676,0.00027123,2]
[311900409,1705489980151,-826.31,0.00027123,2]
[311900410,1705489980160,-1478.93,0.00027123,2]
[311900411,1705489980170,-8305.92,0.00027123,2]
[311900412,1705489980179,-3468.63,0.00027123,2]
[311900413,1705489980189,-688.83,0.00027123,2]
[311900414,1705489980198,-598.69,0.00027123,2]
[311900415,1705489980207,-566.04,0.00027123,2]
[311900416,1705489980217,-13840.01,0.00027123,2]
[311900417,1705489980226,-611.72,0.00027123,2]
[311900418,1705489980236,-330.45,0.00027123,2]
[311900419,1705489980245,-678.15,0.00027123,2]
[311900420,1705489980254,-6007.21,0.00027123,2]
[311900421,1705489980263,-11260.59,0.00027123,2]
[311900422,1705489980272,-537.26,0.00027123,2]
[311900423,1705489980282,-576.52,0.00027123,2]
[311900424,1705489980291,-839.94,0.00027123,2]
[311900425,1705489980300,-785.85,0.00027123,2]
[311900426,1705489980309,-2426.8,0.00027123,2]
[311900427,1705489980318,-2267.53,0.00027123,2]
[311900428,1705489980327,-9043.74,0.00027123,2]
[311900429,1705489980337,-1153.46,0.00027123,2]
[311900430,1705489980345,-5019.46,0.00027123,2]
[311900431,1705489980355,-14230.88,0.00027123,2]
[311900432,1705489980365,-585.41,0.00027123,2]
[311900433,1705489980379,-1948.18,0.00027123,2]
[311900434,1705489980388,-500.0,0.00027123,2]
[311900435,1705489980396,-807.32,0.00027123,2]
[311900436,1705489980405,-541.68,0.00027123,2]
[311900437,1705489980414,-1841.76,0.00027123,2]
[311900438,1705489980424,-648.92,0.00027123,2]
[311900439,1705489980433,-1313.51,0.00027123,2]
[311900440,1705489980441,-7863.6,0.00027123,2]
[311900441,1705489980452,-669.79,0.00027123,2]
[311900442,1705489980461,-1235.43,0.00027123,2]
[311900443,1705489980470,-1875.02,0.00027123,2]
[311900444,1705489980478,-886.27,0.00027123,2]
[311900445,1705489980487,-861.27,0.00027123,2]
[311900446,1705489980496,-2235.54,0.00027123,2]
[311900447,1705489980505,-6074.67,0.00027123,2]
[311900448,1705489980514,-863.63,0.00027123,2]
[311900449,1705489980523,-697.24,0.00027123,2]
[311900450,1705489980532,-524.02,0.00027123,2]
[311900451,1705489980541,-4516.86,0.00027123,2]
[311900452,1705489980550,-3841.76,0.00027123,2]
[311900453,1705489980559,-974.16,0.00027123,2]
[311900454,1705489980567,-4150.83,0.00027123,2]
[311900455,1705489980576,-4448.34,0.00027123,2]
[311900456,1705489980585,-500.0,0.00027123,2]
[311900457,1705489980594,-533.91,0.00027123,2]
[311900458,1705489980603,-566.02,0.00027123,2]
[311900459,1705489980612,-2935.1,0.00027123,2]
[311900460,1705489980623,-1309.04,0.00027123,2]
[311900461,1705489980631,-1965.44,0.00027123,2]
[311900462,1705489980640,-992.22,0.00027123,2]
[311900463,1705489980649,-984.15,0.00027123,2]
[311900464,1705489980658,-500.0,0.00027123,2]
[311900465,1705489980667,-32469.27,0.00027123,2]
[311900466,1705489980676,-573.08,0.00027123,2]
[311900467,1705489980685,-661.33,0.00027123,2]
[311900468,1705489980694,-615.65,0.00027123,2]
[311900469,1705489980704,-1696.71,0.00027123,2]
[311900470,1705489980713,-649.27,0.00027123,2]
[311900471,1705489980722,-2575.9,0.00027123,2]
[311900472,1705489980731,-1939.24,0.00027123,2]
[311900473,1705489980739,-3511.42,0.00027123,2]
[311900474,1705489980748,-500.0,0.00027123,2]
[311900475,1705489980757,-500.0,0.00027123,2]
[311900476,1705489980766,-1929.09,0.00027123,2]
[311900477,1705489980775,-500.0,0.00027123,2]
[311900478,1705489980784,-1412.27,0.00027123,2]
[311900479,1705489980793,-2389.77,0.00027123,2]
[311900480,1705489980802,-2475.33,0.00027123,2]
[311900481,1705489980811,-1653.65,0.00027123,2]
[311900482,1705489980821,-4575.47,0.00027123,2]
[311900483,1705489980830,-14816.63,0.00027123,2]
[311900484,1705489980839,-661.55,0.00027123,2]
[311900485,1705489980848,-834.9,0.00027123,2]
[311900486,1705489980858,-1732.77,0.00027123,2]
[311900487,1705489980867,-8016.45,0.00027123,2]
[311900488,1705489980878,-558.85,0.00027123,2]
[311900489,1705489980889,-1352.99,0.00027123,2]
[311900490,1705489980898,-1784.49,0.00027123,2]
[311900491,1705489980907,-678.67,0.00027123,2]
[311900492,1705489980917,-1038.1,0.00027123,2]
[311900493,1705489980928,-9036.89,0.00027123,2]
[311900494,1705489980939,-815.12,0.00027123,2]
[311900495,1705489980949,-1774.09,0.00027123,2]
[311900496,1705489980958,-502.32,0.00027123,2]
[311900497,1705489980967,-2414.66,0.00027123,2]
[311900498,1705489980976,-5111.21,0.00027123,2]
[311900499,1705489980986,-1734.88,0.00027123,2]
[311900500,1705489980995,-855.29,0.00027123,2]
[311900501,1705489981005,-2245.54,0.00027123,2]
[311900502,1705489981014,-1744.59,0.00027123,2]
[311900503,1705489981024,-1274.36,0.00027123,2]
[311900504,1705489981033,-706.05,0.00027123,2]
[311900505,1705489981043,-1510.08,0.00027123,2]
[311900506,1705489981054,-887.83,0.00027123,2]
[311900507,1705489981063,-1357.1,0.00027123,2]
[311900508,1705489981073,-1827.37,0.00027123,2]
[311900509,1705489981082,-1435.95,0.00027123,2]
[311900510,1705489981092,-584.24,0.00027123,2]
[311900511,1705489981101,-663.37,0.00027123,2]
[311900512,1705489981110,-779.77,0.00027123,2]
[311900513,1705489981121,-597.44,0.00027123,2]
[311900514,1705489981130,-3629.95,0.00027123,2]
[311900515,1705489981139,-1883.37,0.00027123,2]
[311900516,1705489981148,-916.35,0.00027123,2]
[311900517,1705489981157,-992.47,0.00027123,2]
[311900518,1705489981166,-1639.63,0.00027123,2]
[311900519,1705489981175,-1741.77,0.00027123,2]
[311900520,1705489981184,-3959.88,0.00027123,2]
[311900521,1705489981193,-820.93,0.00027123,2]
[311900522,1705489981202,-7153.04,0.00027123,2]
[311900523,1705489981211,-500.0,0.00027123,2]
[311900524,1705489981220,-806.13,0.00027123,2]
[311900525,1705489981229,-782.9,0.00027123,2]
[311900526,1705489981239,-2360.61,0.00027123,2]
[311900527,1705489981248,-500.0,0.00027123,2]
[311900528,1705489981257,-1392.64,0.00027123,2]
[311900529,1705489981266,-1083.43,0.00027123,2]
[311900530,1705489981275,-507.5,0.00027123,2]
[311900531,1705489981284,-778.97,0.00027123,2]
[311900532,1705489981294,-909.26,0.00027123,2]
[311900533,1705489981303,-979.46,0.00027123,2]
[311900534,1705489981312,-1861.48,0.00027123,2]
[311900535,1705489981321,-3419.57,0.00027123,2]
[311900536,1705489981331,-1210.04,0.00027123,2]
[311900537,1705489981340,-1060.67,0.00027123,2]
[311900538,1705489981349,-2842.76,0.00027123,2]
[311900539,1705489981358,-3566.82,0.00027123,5]
[311900540,1705489981369,-1195.39,0.00027123,2]
[311900541,1705489981382,-1906.25,0.00027123,2]
[311900542,1705489981392,-5873.11,0.00027123,2]
[311900543,1705489981401,-1159.83,0.00027123,2]
[311900544,1705489981410,-500.0,0.00027123,2]
[311900545,1705489981421,-1059.12,0.00027123,2]
[311900546,1705489981431,-651.56,0.00027123,2]
[311900547,1705489981440,-3914.25,0.00027123,2]
[311900548,1705489981450,-1418.66,0.00027123,2]
[311900549,1705489981461,-1392.42,0.00027123,2]
[311900550,1705489981471,-1713.01,0.00027123,2]
[311900551,1705489981480,-2140.36,0.00027123,2]
[311900552,1705489981489,-778.99,0.00027123,2]
[311900553,1705489981499,-2146.35,0.00027123,2]
[311900554,1705489981508,-358.77889547,0.00027123,2]
[311900555,1705489981517,-2303.4,0.00027123,2]
[311900556,1705489981527,-2140.57,0.00027123,2]
[311900557,1705489981536,-1461.06,0.00027123,2]
[311900558,1705489981545,-1784.9,0.00027123,2]
[311900559,1705489981554,-539.85,0.00027123,2]
[311900560,1705489981564,-1509.91,0.00027123,2]
[311900561,1705489981574,-27781.74,0.00027123,2]
[311900562,1705489981583,-672.09,0.00027123,2]
[311900563,1705489981593,-881.13,0.00027123,2]
[311900564,1705489981602,-2094.77,0.00027123,2]
[311900565,1705489981612,-534.01,0.00027123,2]
[311900566,1705489981623,-1969.05,0.00027123,2]
[311900567,1705489981633,-4765.45,0.00027123,2]
[311900568,1705489981645,-591.22,0.00027123,2]
[311900569,1705489981654,-1724.25,0.00027123,2]
[311900570,1705489981665,-2966.94,0.00027123,2]
[311900571,1705489981676,-1073.7,0.00027123,2]
[311900572,1705489981687,-856.24,0.00027123,2]
[311900573,1705489981698,-2716.01,0.00027123,2]
[311900574,1705489981708,-5190.51,0.00027123,2]
[311900575,1705489981717,-3130.06,0.00027123,2]
[311900576,1705489981726,-1107.84,0.00027123,2]
[311900577,1705489981735,-1373.46,0.00027123,2]
[311900578,1705489981744,-2577.68,0.00027123,2]
[311900579,1705489981753,-4976.8,0.00027123,2]
[311900580,1705489981762,-1821.72,0.00027123,2]
[311900581,1705489981771,-2636.23,0.00027123,2]
[311900582,1705489981780,-795.84,0.00027123,2]
[311900583,1705489981789,-4042.57,0.00027123,2]
[311900584,1705489981799,-964.47,0.00027123,2]
[311900585,1705489981808,-1662.15,0.00027123,2]
[311900586,1705489981818,-1181.55,0.00027123,2]
[311900587,1705489981828,-1443.1,0.00027123,2]
[311900588,1705489981838,-829.46,0.00027123,2]
[311900589,1705489981849,-500.0,0.00027123,2]
[311900590,1705489981859,-1912.07,0.00027123,2]
[311900591,1705489981869,-1683.87,0.00027123,2]
[311900592,1705489981880,-2975.27,0.00027123,2]
[311900593,1705489981890,-602.95,0.00027123,2]
[311900594,1705489981899,-1794.36,0.00027123,2]
[311900595,1705489981909,-3013.34,0.00027123,2]
[311900596,1705489981917,-1938.89,0.00027123,2]
[311900597,1705489981926,-649.62,0.00027123,2]
[311900598,1705489981935,-8143.8,0.00027123,2]
[311900599,1705489981944,-1207.37,0.00027123,2]
[311900600,1705489981953,-509.62,0.00027123,2]
[311900601,1705489981962,-1304.2,0.00027123,2]
[311900602,1705489981971,-1538.7,0.00027123,2]
[311900603,1705489981980,-924.58,0.00027123,2]
[311900604,1705489981989,-2403.64,0.00027123,2]
[311900605,1705489981999,-852.81,0.00027123,2]
[311900606,1705489982008,-1179.93,0.00027123,2]
[311900607,1705489982017,-1023.73,0.00027123,2]
[311900608,1705489982026,-1937.17,0.00027123,2]
[311900609,1705489982035,-2592.46,0.00027123,2]
[311900610,1705489982044,-968.29,0.00027123,2]
[311900611,1705489982054,-3413.16,0.00027123,2]
[311900612,1705489982063,-500.0,0.00027123,2]
[311900613,1705489982071,-745.84,0.00027123,2]
[311900614,1705489982080,-1297.47,0.00027123,2]
[311900615,1705489982089,-815.9,0.00027123,2]
[311900616,1705489982098,-2908.69,0.00027123,2]
[311900617,1705489982107,-1190.11,0.00027123,2]
[311900618,1705489982117,-8716.14,0.00027123,2]
[311900619,1705489982129,-601.43,0.00027123,2]
[311900620,1705489982138,-3604.29,0.00027123,5]
[311900621,1705489982147,-2488.53,0.00027123,2]
[311900622,1705489982156,-387.72,0.00027227,2]
[311900623,1705489982165,-10011.07878264,0.0002728,2]
[311900624,1705489982174,-4168.78175804,0.0002728,2]
[311900625,1705489982183,-1000.0,0.0002738,2]
[311900626,1705489982192,-1000.0,0.0002738,2]
[311900627,1705489982201,-330.96,0.00027395,2]
[311900628,1705489982211,-2950.33414636,0.00027396,2]
[311900629,1705489982220,-1504.83,0.00027397,2]
[311900630,1705489982229,-752.6,0.00027397,2]
[311900631,1705489982238,-1005.29,0.00027397,2]
[311900632,1705489982247,-581.65,0.00027397,2]
[311900633,1705489982255,-1000.0,0.00027397,2]
[311900634,1705489982264,-1000.0,0.00027397,2]
[311900635,1705489982274,-1000.0,0.00027397,2]
[311900636,1705489982283,-1000.0,0.00027397,2]
[311900637,1705489982292,-1000.0,0.00027397,2]
[311900638,1705489982301,-1000.0,0.00027397,2]
[311900639,1705489982310,-1000.0,0.00027397,2]
[311900640,1705489982319,-1000.0,0.00027397,2]
[311900641,1705489982329,-1000.0,0.00027397,2]
[311900642,1705489982339,-1000.0,0.00027397,2]
[311900643,1705489982349,-1000.0,0.00027397,2]
[311900644,1705489982358,-1000.0,0.00027397,2]
[311900645,1705489982367,-1000.0,0.00027397,2]
[311900646,1705489982585,-1000.0,0.00027397,2]
[311900647,1705489982594,-1000.0,0.00027397,2]
[311900648,1705489982603,-1000.0,0.00027397,2]
[311900649,1705489982612,-1000.0,0.00027397,2]
[311900650,1705489982621,-938.16481025,0.00027397,2]
[311900651,1705489982631,-724.82,0.00027397,2]
[311900652,1705489982640,-600.28,0.00027397,2]
[311900653,1705489982649,-568.6,0.00027397,2]
[311900654,1705489982658,-514.64,0.00027397,2]
[311900655,1705489982667,-522.85,0.00027397,2]
[311900656,1705489982677,-561.37,0.00027397,2]
[311900657,1705489982686,-500.0,0.00027397,2]
[311900658,1705489982695,-569.46,0.00027397,2]
[311900659,1705489982704,-564.18,0.00027397,2]
[311900660,1705489982713,-1178.46,0.00027397,2]
[311900661,1705489982722,-573.27,0.00027397,2]
[311900662,1705489982731,-540.7,0.00027397,2]
[311900663,1705489982741,-507.73,0.00027397,2]
[311900664,1705489982752,-313.52,0.00027397,2]
[311900665,1705489982761,-554.53,0.00027397,2]
[311900666,1705489982770,-676.5,0.00027397,2]
[311900667,1705489982779,-337.48795059,0.00027397,2]
[311900668,1705489982787,-569.53,0.00027397,2]
[311900669,1705489982797,-773.49,0.00027397,2]
[311900670,1705489982807,-713.2,0.00027397,2]
[311900671,1705489982817,-924.46,0.00027397,2]
[311900672,1705489982826,-500.0,0.00027397,30]
[311900673,1705489982837,-500.0,0.00027397,30]
[311900674,1705489982847,-500.0,0.00027397,30]
[311900675,1705489982856,-500.0,0.00027397,30]
[311900676,1705489982866,-500.0,0.00027397,30]
[311900677,1705489982877,-500.0,0.00027397,30]
[311900678,1705489982886,-500.0,0.00027397,30]
[311900679,1705489982895,-523.98606285,0.00027397,30]
[311900680,1705489982905,-1087.8,0.00027397,2]
[311900681,1705489982914,-748.0,0.00027397,2]
[311900682,1705489982924,-590.98,0.00027397,2]
[311900683,1705489982934,-1140.29,0.00027397,2]
[311900684,1705489982944,-771.56,0.00027397,2]
[311900685,1705489982955,-500.0,0.00027397,2]
[311900686,1705489982964,-500.0,0.00027397,2]